[Event "MČR družstev mladších žáků 2024"]
[Site "Harrachov, Czech Republic"]
[Date "2024.06.14"]
[Round "2.26"]
[White "Krisica Lukas"]
[Black "Vorlik Jachym"]
[Result "0-1"]
[TimeControl "25+10"]
[WhiteFideId "23740639"]
[BlackFideId "23750901"]
[WhiteElo "1433"]
[BlackElo "1388"]

1. Nf3 {[%clk 00:25:16]} {[%emt 00:00:04]} Nf6 {[%clk 00:24:59]} {[%emt
00:00:21]} 2. d4 {[%clk 00:25:07]} {[%emt 00:00:18]} e6 {[%clk 00:24:56]}
{[%emt 00:00:13]} 3. c4 {[%clk 00:24:54]} {[%emt 00:00:23]} d5 {[%clk
00:24:44]} {[%emt 00:00:22]} 4. Nc3 {[%clk 00:24:50]} {[%emt 00:00:14]} Bb4
{[%clk 00:24:14]} {[%emt 00:00:40]} 5. Bg5 {[%clk 00:24:55]} {[%emt 00:00:05]}
h6 {[%clk 00:23:59]} {[%emt 00:00:26]} 6. Bh4 {[%clk 00:24:35]} {[%emt
00:00:30]} O-O {[%clk 00:23:09]} {[%emt 00:00:59]} 7. e3 {[%clk 00:24:25]}
{[%emt 00:00:20]} c5 {[%clk 00:22:04]} {[%emt 00:01:16]} 8. cxd5 {[%clk
00:22:56]} {[%emt 00:01:38]} exd5 {[%clk 00:20:30]} {[%emt 00:01:44]} 9. Bd3
{[%clk 00:20:54]} {[%emt 00:02:13]} c4 {[%clk 00:19:27]} {[%emt 00:01:13]} 10.
Bc2 {[%clk 00:21:01]} {[%emt 00:00:03]} Qa5 {[%clk 00:16:50]} {[%emt 00:02:47]}
11. Qd2 {[%clk 00:14:34]} {[%emt 00:06:37]} Bxc3 {[%clk 00:15:53]} {[%emt
00:01:07]} 12. Qxc3 {[%clk 00:14:40]} {[%emt 00:00:04]} Qxc3+ {[%clk 00:15:56]}
{[%emt 00:00:07]} 13. bxc3 {[%clk 00:14:46]} {[%emt 00:00:04]} a6 {[%clk
00:15:33]} {[%emt 00:00:33]} 14. O-O {[%clk 00:13:01]} {[%emt 00:01:55]} Nbd7
{[%clk 00:15:20]} {[%emt 00:00:21]} 15. Rab1 {[%clk 00:12:05]} {[%emt
00:01:07]} b5 {[%clk 00:14:03]} {[%emt 00:01:27]} 16. Rb4 {[%clk 00:06:25]}
{[%emt 00:05:50]} Bb7 {[%clk 00:12:37]} {[%emt 00:01:34]} 17. Bxf6 {[%clk
00:05:00]} {[%emt 00:01:37]} Nxf6 {[%clk 00:12:21]} {[%emt 00:00:27]} 18. a4
{[%clk 00:05:07]} {[%emt 00:00:03]} Bc6 {[%clk 00:11:38]} {[%emt 00:00:53]} 19.
Ne5 {[%clk 00:05:14]} {[%emt 00:00:03]} Be8 {[%clk 00:11:43]} {[%emt 00:00:04]}
20. Ra1 {[%clk 00:05:09]} {[%emt 00:00:16]} Nd7 {[%clk 00:09:20]} {[%emt
00:02:32]} 21. Nc6 {[%clk 00:01:00]} {[%emt 00:04:20]} Nb8 {[%clk 00:07:07]}
{[%emt 00:02:23]} 22. Ne7+ {[%clk 00:00:45]} {[%emt 00:00:25]} Kh8 {[%clk
00:07:05]} {[%emt 00:00:12]} 23. axb5 {[%clk 00:00:22]} {[%emt 00:00:32]} Bxb5
{[%clk 00:06:52]} {[%emt 00:00:24]} 24. Rxb5 {[%clk 00:00:00]} {[%emt
00:00:22]} 0-1



[ePGN "0.1;DGT LiveChess/2.2.6"]

[Event "MČR družstev mladších žáků 2024"]
[Site "Harrachov, Czech Republic"]
[Date "2024.06.14"]
[Round "2.27"]
[White "Bartak Tobias"]
[Black "Hovhannisyan Narek"]
[Result "1/2-1/2"]
[TimeControl "25+10"]
[WhiteFideId "23753544"]
[WhiteElo "1260"]
[BlackElo "1195"]

1. e4 {[%clk 00:25:14]} {[%emt 00:00:05]} c6 {[%clk 00:25:18]} {[%emt
00:00:02]} 2. d4 {[%clk 00:25:17]} {[%emt 00:00:07]} d5 {[%clk 00:25:26]}
{[%emt 00:00:02]} 3. exd5 {[%clk 00:25:22]} {[%emt 00:00:05]} cxd5 {[%clk
00:25:34]} {[%emt 00:00:02]} 4. Nf3 {[%clk 00:25:21]} {[%emt 00:00:12]} Bg4
{[%clk 00:25:31]} {[%emt 00:00:12]} 5. Bd3 {[%clk 00:25:04]} {[%emt 00:00:27]}
Nc6 {[%clk 00:25:28]} {[%emt 00:00:13]} 6. c3 {[%clk 00:25:04]} {[%emt
00:00:10]} e6 {[%clk 00:25:12]} {[%emt 00:00:27]} 7. O-O {[%clk 00:24:34]}
{[%emt 00:00:40]} Nf6 {[%clk 00:25:09]} {[%emt 00:00:12]} 8. h3 {[%clk
00:24:04]} {[%emt 00:00:40]} Bh5 {[%clk 00:25:04]} {[%emt 00:00:16]} 9. Bg5
{[%emt 00:00:35]} Bd6 {[%clk 00:24:21]} {[%emt 00:00:34]} 10. Nbd2 {[%clk
00:23:06]} {[%emt 00:01:01]} O-O {[%clk 00:24:02]} {[%emt 00:00:29]} 11. Qc2
{[%clk 00:21:55]} {[%emt 00:01:22]} h6 {[%clk 00:23:31]} {[%emt 00:00:40]} 12.
Bh4 {[%clk 00:21:22]} {[%emt 00:00:43]} Rc8 {[%clk 00:21:52]} {[%emt 00:01:47]}
13. a3 {[%clk 00:19:08]} {[%emt 00:02:26]} e5 {[%clk 00:17:50]} {[%emt
00:04:12]} 14. dxe5 {[%clk 00:17:37]} {[%emt 00:01:41]} Nxe5 {[%clk 00:17:46]}
{[%emt 00:00:14]} 15. Nxe5 {[%clk 00:17:33]} {[%emt 00:00:14]} Bxe5 {[%clk
00:17:52]} {[%emt 00:00:04]} 16. Rae1 {[%clk 00:14:11]} {[%emt 00:03:32]} Bb8
{[%clk 00:16:58]} {[%emt 00:01:04]} 17. Bf5 {[%clk 00:11:40]} {[%emt 00:02:41]}
Rc6 {[%clk 00:16:16]} {[%emt 00:00:51]} 18. g4 {[%clk 00:07:56]} {[%emt
00:03:56]} g5 {[%clk 00:11:30]} {[%emt 00:04:55]} 19. Bxg5 {[%clk 00:06:40]}
{[%emt 00:01:27]} hxg5 {[%clk 00:10:22]} {[%emt 00:01:17]} 20. gxh5 {[%clk
00:06:39]} {[%emt 00:00:11]} Nxh5 {[%clk 00:09:44]} {[%emt 00:00:48]} 21. Bg4
{[%clk 00:05:58]} {[%emt 00:00:52]} Qd6 {[%clk 00:08:39]} {[%emt 00:01:14]} 22.
Nf3 {[%clk 00:05:49]} {[%emt 00:00:20]} Nf6 {[%clk 00:05:34]} {[%emt 00:03:14]}
23. Qf5 {[%clk 00:04:56]} {[%emt 00:01:03]} Ne4 {[%clk 00:04:17]} {[%emt
00:01:26]} 24. Rd1 {[%clk 00:02:32]} {[%emt 00:02:36]} Rd8 {[%clk 00:03:03]}
{[%emt 00:01:24]} 25. Rfe1 {[%clk 00:02:13]} {[%emt 00:00:29]} Qe6 {[%clk
00:02:37]} {[%emt 00:00:36]} 26. Qxe6 {[%clk 00:02:14]} {[%emt 00:00:09]} fxe6
{[%clk 00:02:43]} {[%emt 00:00:04]} 27. Rxe4 {[%clk 00:02:22]} {[%emt
00:00:02]} dxe4 {[%clk 00:02:19]} {[%emt 00:00:34]} 28. Rxd8+ {[%clk 00:02:29]}
{[%emt 00:00:03]} Kf7 {[%clk 00:02:26]} {[%emt 00:00:02]} 29. Ne5+ {[%clk
00:02:34]} {[%emt 00:00:06]} Bxe5 {[%clk 00:02:32]} {[%emt 00:00:04]} 30. Rd7+
{[%clk 00:02:42]} {[%emt 00:00:02]} Kf6 {[%clk 00:02:34]} {[%emt 00:00:08]} 31.
Rxb7 {[%clk 00:02:43]} {[%emt 00:00:09]} Rb6 {[%clk 00:02:15]} {[%emt
00:00:29]} 32. Rxa7 {[%clk 00:02:19]} {[%emt 00:00:33]} Rxb2 {[%clk 00:02:23]}
{[%emt 00:00:03]} 33. Ra6 {[%clk 00:02:28]} Bxc3 {[%clk 00:01:39]} {[%emt
00:00:54]} 34. Rxe6+ {[%clk 00:02:30]} {[%emt 00:00:08]} Kg7 {[%clk 00:01:47]}
{[%emt 00:00:01]} 35. Rxe4 {[%clk 00:02:37]} {[%emt 00:00:04]} Ra2 {[%clk
00:01:37]} {[%emt 00:00:20]} 36. Ra4 {[%clk 00:02:04]} {[%emt 00:00:42]} Bb2
{[%clk 00:01:38]} {[%emt 00:00:09]} 37. Ra5 {[%clk 00:02:02]} {[%emt 00:00:12]}
Kg6 {[%clk 00:01:33]} {[%emt 00:00:16]} 38. a4 {[%clk 00:01:53]} {[%emt
00:00:20]} Bd4 {[%clk 00:01:33]} {[%emt 00:00:09]} 39. Bf5+ {[%clk 00:01:46]}
{[%emt 00:00:16]} Kh6 {[%clk 00:01:37]} {[%emt 00:00:06]} 40. Ra6+ {[%clk
00:01:54]} {[%emt 00:00:03]} Kg7 {[%clk 00:01:14]} {[%emt 00:00:33]} 41. Rg6+
{[%clk 00:01:36]} {[%emt 00:00:27]} Kf7 {[%clk 00:01:24]} 42. Rxg5 {[%clk
00:01:42]} {[%emt 00:00:05]} Kf6 {[%clk 00:01:27]} {[%emt 00:00:06]} 43. Rh5
{[%clk 00:01:32]} {[%emt 00:00:20]} Rxf2 {[%clk 00:01:31]} {[%emt 00:00:06]} 44.
Bg4 {[%clk 00:01:16]} {[%emt 00:00:27]} Rf5+ {[%clk 00:00:52]} {[%emt
00:00:49]} 45. Kg2 {[%clk 00:01:24]} {[%emt 00:00:02]} Rxh5 {[%clk 00:01:00]}
{[%emt 00:00:01]} 46. Bxh5 {[%clk 00:01:33]} {[%emt 00:00:02]} Kg5 {[%emt
00:00:13]} 1/2-1/2



[ePGN "0.1;DGT LiveChess/2.2.6"]

[Event "MČR družstev mladších žáků 2024"]
[Site "Harrachov, Czech Republic"]
[Date "2024.06.14"]
[Round "2.28"]
[White "Herentin Matyas"]
[Black "Melicharova Veronika"]
[Result "0-1"]
[TimeControl "25+10"]
[WhiteFideId "23745746"]
[BlackFideId "23749695"]
[WhiteElo "1152"]
[BlackElo "1003"]

1. e4 {[%clk 00:25:17]} {[%emt 00:00:01]} d5 {[%clk 00:25:18]} {[%emt
00:00:02]} 2. exd5 {[%clk 00:25:25]} {[%emt 00:00:03]} Qxd5 {[%clk 00:25:25]}
{[%emt 00:00:03]} 3. Nc3 {[%clk 00:25:32]} {[%emt 00:00:02]} Qa5 {[%clk
00:25:33]} {[%emt 00:00:02]} 4. Bc4 {[%clk 00:25:24]} {[%emt 00:00:19]} Nf6
{[%clk 00:25:39]} {[%emt 00:00:04]} 5. d3 {[%clk 00:25:30]} {[%emt 00:00:04]}
c6 {[%clk 00:24:53]} {[%emt 00:00:56]} 6. Bd2 {[%clk 00:25:37]} {[%emt
00:00:04]} Qc7 {[%clk 00:22:36]} {[%emt 00:02:25]} 7. Nf3 {[%clk 00:25:14]}
{[%emt 00:00:34]} Bg4 {[%clk 00:22:29]} {[%emt 00:00:18]} 8. h3 {[%clk
00:24:37]} {[%emt 00:00:46]} Bh5 {[%clk 00:22:33]} {[%emt 00:00:05]} 9. Qe2
{[%clk 00:24:04]} {[%emt 00:00:43]} e6 {[%clk 00:22:30]} {[%emt 00:00:13]} 10.
g4 {[%clk 00:23:31]} {[%emt 00:00:43]} Bg6 {[%clk 00:22:31]} {[%emt 00:00:09]}
11. O-O-O {[%clk 00:23:18]} {[%emt 00:00:24]} Bd6 {[%clk 00:19:29]} {[%emt
00:03:11]} 12. h4 {[%clk 00:21:10]} {[%emt 00:02:19]} h6 {[%clk 00:16:28]}
{[%emt 00:03:11]} 13. g5 {[%clk 00:20:36]} {[%emt 00:00:44]} hxg5 {[%clk
00:15:06]} {[%emt 00:01:32]} 14. hxg5 {[%clk 00:20:15]} {[%emt 00:00:31]} Rxh1
{[%clk 00:14:46]} {[%emt 00:00:30]} 15. Rxh1 {[%clk 00:20:21]} {[%emt
00:00:04]} Nfd7 {[%clk 00:11:12]} {[%emt 00:03:43]} 16. Ne4 {[%clk 00:18:26]}
{[%emt 00:02:06]} Bf4 {[%clk 00:10:10]} {[%emt 00:01:12]} 17. Bxf4 {[%clk
00:17:29]} {[%emt 00:01:07]} Qxf4+ {[%clk 00:10:15]} 18. Kb1 {[%clk 00:17:34]}
{[%emt 00:00:10]} Bxe4 {[%clk 00:09:48]} {[%emt 00:00:36]} 19. dxe4 {[%clk
00:17:08]} {[%emt 00:00:36]} b5 {[%clk 00:08:24]} {[%emt 00:01:34]} 20. Bd3
{[%clk 00:15:40]} {[%emt 00:01:39]} Nc5 {[%clk 00:07:39]} {[%emt 00:00:54]} 0-1



[ePGN "0.1;DGT LiveChess/2.2.6"]

[Event "MČR družstev mladších žáků 2024"]
[Site "Harrachov, Czech Republic"]
[Date "2024.06.14"]
[Round "2.3"]
[White "Bucek Vit"]
[Black "Koutecky Vaclav"]
[Result "1-0"]
[TimeControl "25+10"]
[WhiteFideId "23750812"]
[BlackFideId "23752602"]
[WhiteElo "1582"]
[BlackElo "1194"]

1. e4 {[%clk 00:25:19]} {[%emt 00:00:01]} e5 {[%clk 00:25:17]} {[%emt
00:00:03]} 2. Nf3 {[%clk 00:25:28]} Nc6 {[%clk 00:25:26]} {[%emt 00:00:01]} 3.
d4 {[%clk 00:25:37]} {[%emt 00:00:01]} exd4 {[%clk 00:25:35]} {[%emt 00:00:01]}
4. Bc4 {[%clk 00:25:46]} {[%emt 00:00:01]} Nf6 {[%clk 00:25:40]} {[%emt
00:00:04]} 5. e5 {[%clk 00:25:55]} {[%emt 00:00:01]} d5 {[%clk 00:25:48]}
{[%emt 00:00:01]} 6. Bb5 {[%clk 00:26:04]} {[%emt 00:00:01]} Ne4 {[%clk
00:25:54]} {[%emt 00:00:04]} 7. Nxd4 {[%clk 00:26:12]} {[%emt 00:00:02]} Bc5
{[%clk 00:25:45]} {[%emt 00:00:18]} 8. Be3 {[%clk 00:23:08]} {[%emt 00:03:12]}
Bxd4 {[%clk 00:25:33]} {[%emt 00:00:23]} 9. Bxd4 {[%clk 00:22:54]} {[%emt
00:00:25]} Bd7 {[%clk 00:25:15]} {[%emt 00:00:27]} 10. Nc3 {[%clk 00:21:55]}
{[%emt 00:01:11]} Nxd4 {[%clk 00:24:22]} {[%emt 00:01:02]} 11. Bxd7+ {[%clk
00:21:55]} {[%emt 00:00:10]} Qxd7 {[%clk 00:24:28]} {[%emt 00:00:04]} 12. Qxd4
{[%clk 00:22:03]} {[%emt 00:00:03]} Nxc3 {[%clk 00:24:33]} {[%emt 00:00:05]} 13.
Qxc3 {[%clk 00:22:09]} {[%emt 00:00:04]} O-O-O {[%clk 00:24:33]} {[%emt
00:00:09]} 14. O-O-O {[%clk 00:22:07]} {[%emt 00:00:12]} d4 {[%clk 00:24:20]}
{[%emt 00:00:21]} 15. Qc5 {[%clk 00:21:14]} {[%emt 00:01:00]} Qg4 {[%clk
00:23:54]} {[%emt 00:00:37]} 16. Qxa7 {[%clk 00:20:48]} {[%emt 00:00:39]} Qf4+
{[%clk 00:23:25]} {[%emt 00:00:37]} 17. Kb1 {[%clk 00:20:56]} {[%emt 00:00:04]}
Qxe5 {[%clk 00:23:24]} {[%emt 00:00:10]} 18. Rhe1 {[%clk 00:20:55]} {[%emt
00:00:09]} Qd5 {[%clk 00:23:14]} {[%emt 00:00:23]} 19. Re7 {[%clk 00:20:00]}
{[%emt 00:01:03]} 1-0



[ePGN "0.1;DGT LiveChess/2.2.6"]

[Event "MČR družstev mladších žáků 2024"]
[Site "Harrachov, Czech Republic"]
[Date "2024.06.14"]
[Round "2.4"]
[White "Koutecka Magdalena"]
[Black "Kozusnik Jan"]
[Result "0-1"]
[TimeControl "25+10"]
[WhiteFideId "23752599"]
[BlackFideId "23731796"]
[WhiteElo "1085"]
[BlackElo "1345"]

1. e4 {[%clk 00:25:19]} c5 {[%clk 00:25:19]} {[%emt 00:00:01]} 2. d4 {[%clk
00:25:27]} {[%emt 00:00:02]} cxd4 {[%clk 00:25:15]} {[%emt 00:00:14]} 3. c3
{[%clk 00:25:35]} {[%emt 00:00:02]} dxc3 {[%clk 00:24:56]} {[%emt 00:00:30]} 4.
Nxc3 {[%clk 00:25:42]} {[%emt 00:00:03]} Nc6 {[%clk 00:24:43]} {[%emt
00:00:23]} 5. Bc4 {[%clk 00:25:31]} {[%emt 00:00:21]} e6 {[%clk 00:23:33]}
{[%emt 00:01:20]} 6. Nf3 {[%clk 00:25:24]} {[%emt 00:00:17]} Bb4 {[%clk
00:23:14]} {[%emt 00:00:28]} 7. O-O {[%clk 00:24:13]} {[%emt 00:01:21]} Nf6
{[%clk 00:23:21]} {[%emt 00:00:03]} 8. Qe2 {[%clk 00:21:57]} {[%emt 00:02:22]}
d6 {[%clk 00:21:43]} {[%emt 00:01:51]} 9. Rd1 {[%clk 00:20:51]} {[%emt
00:01:16]} Qc7 {[%clk 00:21:09]} {[%emt 00:00:45]} 10. Nb5 {[%clk 00:19:49]}
{[%emt 00:01:11]} Qe7 {[%clk 00:20:12]} {[%emt 00:01:08]} 11. Bf4 {[%clk
00:16:34]} {[%emt 00:03:25]} e5 {[%clk 00:15:37]} {[%emt 00:04:45]} 12. Bg5
{[%clk 00:14:15]} {[%emt 00:02:26]} a6 {[%clk 00:15:18]} {[%emt 00:00:32]} 13.
Nc3 {[%clk 00:13:40]} {[%emt 00:00:41]} Bg4 {[%clk 00:14:42]} {[%emt 00:00:50]}
14. Nd5 {[%clk 00:12:31]} {[%emt 00:01:18]} Qd8 {[%clk 00:13:33]} {[%emt
00:01:18]} 15. Qd3 {[%clk 00:09:23]} {[%emt 00:03:16]} h6 {[%clk 00:11:58]}
{[%emt 00:01:49]} 16. Bh4 {[%clk 00:07:52]} {[%emt 00:01:41]} g5 {[%clk
00:10:28]} {[%emt 00:01:41]} 17. Bg3 {[%clk 00:07:25]} {[%emt 00:00:34]} Nxd5
{[%clk 00:10:21]} {[%emt 00:00:19]} 18. Bxd5 {[%clk 00:05:36]} {[%emt
00:01:59]} Be6 {[%clk 00:10:18]} {[%emt 00:00:13]} 19. Bxc6+ {[%clk 00:04:37]}
{[%emt 00:01:08]} bxc6 {[%clk 00:10:22]} {[%emt 00:00:06]} 20. a3 {[%clk
00:04:06]} {[%emt 00:00:41]} g4 {[%clk 00:08:06]} {[%emt 00:02:26]} 21. axb4
{[%clk 00:02:30]} {[%emt 00:01:46]} gxf3 {[%clk 00:08:12]} {[%emt 00:00:04]} 22.
Qxd6 {[%clk 00:01:52]} {[%emt 00:00:48]} Qxd6 {[%clk 00:08:18]} {[%emt
00:00:04]} 23. Rxd6 {[%clk 00:02:00]} {[%emt 00:00:02]} Bd7 {[%clk 00:03:13]}
{[%emt 00:05:15]} 24. Bxe5 {[%clk 00:01:46]} {[%emt 00:00:24]} Rg8 {[%clk
00:03:20]} {[%emt 00:00:03]} 25. g3 {[%clk 00:01:02]} {[%emt 00:00:54]} Rg6
{[%clk 00:02:57]} {[%emt 00:00:34]} 26. Rxg6 {[%clk 00:00:50]} {[%emt
00:00:22]} fxg6 {[%clk 00:03:06]} {[%emt 00:00:01]} 27. Ra3 {[%clk 00:00:21]}
{[%emt 00:00:39]} Bg4 {[%clk 00:02:48]} {[%emt 00:00:28]} 0-1



[ePGN "0.1;DGT LiveChess/2.2.6"]

[Event "MČR družstev mladších žáků 2024"]
[Site "Harrachov, Czech Republic"]
[Date "2024.06.14"]
[Round "2.5"]
[White "Lackova Lucie"]
[Black "Strazhnyk Yevhen"]
[Result "1-0"]
[TimeControl "25+10"]
[WhiteFideId "23731800"]
[BlackFideId "23771305"]
[WhiteElo "1601"]
[BlackElo "1150"]

1. e4 {[%clk 00:25:18]} {[%emt 00:00:02]} e5 {[%clk 00:25:18]} {[%emt
00:00:02]} 2. Nf3 {[%clk 00:25:24]} {[%emt 00:00:04]} Nc6 {[%clk 00:25:26]}
{[%emt 00:00:03]} 3. d4 {[%clk 00:25:33]} exd4 {[%clk 00:25:34]} {[%emt
00:00:02]} 4. Nxd4 {[%clk 00:25:41]} {[%emt 00:00:01]} Bc5 {[%clk 00:25:42]}
{[%emt 00:00:02]} 5. Be3 {[%clk 00:25:50]} {[%emt 00:00:01]} Bxd4 {[%clk
00:25:40]} {[%emt 00:00:13]} 6. Bxd4 {[%clk 00:25:58]} {[%emt 00:00:02]} d6
{[%clk 00:25:44]} {[%emt 00:00:05]} 7. Bxg7 {[%clk 00:26:03]} {[%emt 00:00:05]}
Qe7 {[%clk 00:25:31]} {[%emt 00:00:22]} 8. Bxh8 {[%clk 00:25:01]} {[%emt
00:01:14]} Qxe4+ {[%clk 00:25:32]} {[%emt 00:00:07]} 9. Qe2 {[%clk 00:25:06]}
{[%emt 00:00:07]} Qxe2+ {[%clk 00:25:37]} {[%emt 00:00:06]} 10. Bxe2 {[%clk
00:25:14]} Bf5 {[%clk 00:25:45]} {[%emt 00:00:02]} 11. Bc3 {[%clk 00:24:31]}
{[%emt 00:00:54]} d5 {[%clk 00:25:26]} {[%emt 00:00:28]} 12. Bf3 {[%clk
00:23:36]} {[%emt 00:01:06]} O-O-O {[%clk 00:25:22]} {[%emt 00:00:14]} 13. O-O
{[%clk 00:21:46]} {[%emt 00:02:00]} Bxc2 {[%clk 00:23:37]} {[%emt 00:01:54]} 14.
Na3 {[%clk 00:19:48]} {[%emt 00:02:08]} Bf5 {[%clk 00:23:21]} {[%emt 00:00:24]}
15. Rfd1 {[%clk 00:19:25]} {[%emt 00:00:34]} Be6 {[%clk 00:23:08]} {[%emt
00:00:22]} 16. Nc2 {[%clk 00:19:07]} {[%emt 00:00:30]} Bf5 {[%clk 00:22:40]}
{[%emt 00:00:37]} 17. Nd4 {[%clk 00:19:09]} {[%emt 00:00:08]} Nxd4 {[%clk
00:22:47]} {[%emt 00:00:04]} 18. Rxd4 {[%clk 00:19:00]} {[%emt 00:00:19]} Be6
{[%clk 00:22:52]} {[%emt 00:00:04]} 19. Rad1 {[%clk 00:18:56]} {[%emt
00:00:15]} c6 {[%clk 00:22:50]} {[%emt 00:00:13]} 20. R4d3 {[%clk 00:18:41]}
{[%emt 00:00:26]} Nh6 {[%clk 00:21:57]} {[%emt 00:01:01]} 21. Bd4 {[%clk
00:17:02]} {[%emt 00:01:49]} a6 {[%clk 00:21:48]} {[%emt 00:00:20]} 22. h3
{[%clk 00:16:36]} {[%emt 00:00:36]} Nf5 {[%clk 00:21:40]} {[%emt 00:00:17]} 23.
Bg4 {[%clk 00:15:32]} {[%emt 00:01:15]} Nxd4 {[%clk 00:21:34]} {[%emt
00:00:17]} 24. Rxd4 {[%clk 00:15:40]} {[%emt 00:00:01]} Bxg4 {[%clk 00:21:16]}
{[%emt 00:00:28]} 25. Rxg4 {[%clk 00:15:48]} {[%emt 00:00:02]} Rf8 {[%clk
00:20:32]} {[%emt 00:00:54]} 26. Rg7 {[%clk 00:15:49]} {[%emt 00:00:10]} h6
{[%clk 00:20:38]} {[%emt 00:00:04]} 27. Rh7 {[%clk 00:15:57]} {[%emt 00:00:01]}
1-0



[ePGN "0.1;DGT LiveChess/2.2.6"]

[Event "MČR družstev mladších žáků 2024"]
[Site "Harrachov, Czech Republic"]
[Date "2024.06.14"]
[Round "2.7"]
[White "Padivy Jan"]
[Black "Zrust Lukas"]
[Result "1/2-1/2"]
[TimeControl "25+10"]
[WhiteFideId "23752904"]
[BlackFideId "23736666"]
[WhiteElo "1500"]
[BlackElo "1742"]

1. d4 {[%clk 00:25:17]} {[%emt 00:00:02]} Nf6 {[%clk 00:25:14]} {[%emt
00:00:06]} 2. c4 {[%clk 00:25:25]} {[%emt 00:00:02]} g6 {[%clk 00:25:20]}
{[%emt 00:00:05]} 3. Nc3 {[%clk 00:25:32]} {[%emt 00:00:03]} Bg7 {[%clk
00:25:29]} {[%emt 00:00:01]} 4. Nf3 {[%clk 00:25:39]} {[%emt 00:00:02]} d6
{[%clk 00:25:38]} {[%emt 00:00:01]} 5. Bg5 {[%clk 00:25:44]} {[%emt 00:00:05]}
O-O {[%clk 00:25:46]} {[%emt 00:00:02]} 6. e3 {[%clk 00:25:52]} {[%emt
00:00:01]} Nbd7 {[%clk 00:25:54]} {[%emt 00:00:03]} 7. Bd3 {[%clk 00:25:51]}
{[%emt 00:00:07]} h6 {[%clk 00:25:26]} {[%emt 00:00:42]} 8. Bh4 {[%clk
00:25:56]} {[%emt 00:00:05]} Re8 {[%clk 00:24:43]} {[%emt 00:00:54]} 9. O-O
{[%clk 00:25:23]} {[%emt 00:00:41]} e5 {[%clk 00:22:58]} {[%emt 00:01:56]} 10.
Qc2 {[%clk 00:19:20]} {[%emt 00:06:10]} exd4 {[%clk 00:21:17]} {[%emt
00:01:54]} 11. exd4 {[%clk 00:18:36]} {[%emt 00:00:53]} c6 {[%clk 00:15:30]}
{[%emt 00:05:58]} 12. Rfe1 {[%clk 00:17:18]} {[%emt 00:01:23]} Rxe1+ {[%clk
00:10:09]} {[%emt 00:05:37]} 13. Rxe1 {[%clk 00:17:23]} {[%emt 00:00:05]} Qc7
{[%clk 00:09:05]} {[%emt 00:01:14]} 14. Re7 {[%clk 00:16:27]} {[%emt 00:00:55]}
Bf8 {[%clk 00:06:01]} {[%emt 00:03:25]} 15. Bxf6 {[%clk 00:16:04]} {[%emt
00:00:31]} Qd8 {[%clk 00:01:10]} {[%emt 00:05:01]} 16. Rxf7 {[%clk 00:13:02]}
{[%emt 00:03:12]} Nxf6 {[%clk 00:01:19]} {[%emt 00:00:01]} 17. Bxg6 {[%clk
00:13:10]} {[%emt 00:00:02]} Rb8 {[%clk 00:00:14]} {[%emt 00:01:15]} 18. Qe2
{[%clk 00:07:40]} {[%emt 00:05:37]} Bd7 {[%clk 00:00:14]} {[%emt 00:00:13]} 19.
Nh4 {[%clk 00:05:02]} {[%emt 00:02:47]} Be8 {[%clk 00:00:14]} {[%emt 00:00:11]}
20. Qe6 {[%clk 00:05:10]} {[%emt 00:00:01]} Bxf7 {[%clk 00:00:18]} {[%emt
00:00:08]} 21. Qxf7+ {[%clk 00:05:18]} {[%emt 00:00:01]} Kh8 {[%clk 00:00:27]}
{[%emt 00:00:01]} 22. Bf5 {[%clk 00:05:13]} {[%emt 00:00:14]} Bg7 {[%clk
00:00:16]} {[%emt 00:00:22]} 1/2-1/2



[ePGN "0.1;DGT LiveChess/2.2.6"]